Cogmind - Beta 13 @@@ ROGUE MODE // 2024.04.08 @ 19:43:48 Player: Slavanich Result: Destroyed by G-50 Soldier with Heavy Laser Performance ------------- Evolutions (3) 1500 Regions Visited (4) 800 Robots Destroyed (93) 465 Value Destroyed (2509) 2509 Prototype IDs (2) 40 Alien Tech Used (0) 0 Bonus (59) 59 TOTAL SCORE: 5373 Bonus ------- High Alert Combat Kills 59 Cogmind --------- Core Integrity 0/700 Matter 153/300 Energy 100/100 System Corruption 10% Temperature Cool (9) Movement Core (200) Ox3 Location -7/Factory Parts ------- > --- POWER (1) -------- (None) > --- PROPULSION (3) --- (None) > --- UTILITY (6) ------ Medium Storage Unit > --- WEAPON (3) ------- (None) > --- INVENTORY (10) --- Mining Claw Peak State ------------ > --- POWER ------------ Light Deuterium Engine > --- PROPULSION ------- Light Treads Advanced Treads > --- UTILITY ---------- Medium Storage Unit Propulsion Shielding Reactive Plating Reactive Plating Reactive Plating Recalibrator > --- WEAPON ----------- Shotgun Rocket Launcher Rocket Launcher > --- INVENTORY -------- Mini Grenade Launcher Mini Grenade Launcher Mining Claw [Rating: 28] Favorites ----------- Power Reinforced Ion Engine Engine Reinforced Ion Engine Propulsion Aluminum Leg Treads Light Treads Leg Aluminum Leg Hover Unit Backup Propulsion III Utility Hardened Light Armor Plating Device Recalibrator Storage Large Matter Pod Protection Hardened Light Armor Plating Weapon Mini Grenade Launcher Energy Gun EM Pulse Gun Ballistic Gun Shotgun Launcher Mini Grenade Launcher Build | -11 -10 -9 -8 -7 ------- Run | Yrd Mat Mat Mat Fac Slots Evolved 6 | . . 2 2 2 Power . | . . . . . Propulsion 1 | . . . . 1 Utility 4 | . . 1 2 1 Weapon 1 | . . 1 . . Parts Attached 44 | 5 10 6 10 13 Power 3 | 1 1 . . 1 Engine 3 | 1 1 . . 1 Core . | . . . . . Reactor . | . . . . . Propulsion 8 | 2 . 2 1 3 Treads 3 | . . 1 1 1 Leg 3 | 2 . 1 . . Wheel . | . . . . . Hover 2 | . . . . 2 Flight . | . . . . . Utility 21 | . 7 3 6 5 Device 2 | . 1 . . 1 Storage 4 | . 2 1 . 1 Processor . | . . . . . Hackware . | . . . . . Protection 15 | . 4 2 6 3 Artifact . | . . . . . Weapon 12 | 2 2 1 3 4 Energy Gun 2 | 2 . . . . Energy Cannon . | . . . . . Ballistic Gun 1 | . . . 1 . Ballistic Cannon . | . . . . . Launcher 9 | . 2 1 2 4 Special Weapon . | . . . . . Impact Weapon . | . . . . . Slashing Weapon . | . . . . . Piercing Weapon . | . . . . . Special Melee Weapon . | . . . . . Unidentified Prototypes . | . . . . . Parts Lost 29 | . . 3 8 18 Power 2 | . . . 1 1 Propulsion 7 | . . 2 1 4 Utility 13 | . . 1 4 8 Weapon 7 | . . . 2 5 Highest Loss Streak 11 | . . 1 6 11 To Critical Strikes 1 | . . . 1 . Average Slot Usage (%) 88 | . 98 92 84 67 Engine 9 | . 14 11 3 3 Treads 6 | . . 6 12 10 Leg 11 | . 28 9 . . Storage 13 | . 6 19 18 8 Protection 19 | . 20 12 24 22 Ballistic Gun 1 | . . . 6 3 Launcher 24 | . 27 33 18 12 Naked Turns . | . . . . . Heaviest Build 76 | 7 22 61 75 76 Greatest Support 42 | 20 20 20 42 42 Greatest Overweight (x) 20 | . 1 20 3 8 Average Overweight (x) 1 | . . 2 2 1 Largest Inventory Capacity 25 | 5 25 20 20 20 Average Capacity 13 | 5 5 17 20 13 Most Carried 13 | 3 5 12 13 7 Average Carried 5 | . 4 6 7 4 Final Capacity 20 | 5 5 20 20 10 Final Carried 12 | 2 5 12 5 1 Class Distribution -------------------- 55% | Bomber 44% | Mutant Dominant Class ---------------- Mutant | -10/Materials Bomber | -9/Materials Bomber | -8/Materials Mutant | -7/Factory Resources | -11 -10 -9 -8 -7 ----------- Run | Yrd Mat Mat Mat Fac Matter Collected 1746 | 250 482 156 468 390 Remotely . | . . . . . Salvage Created 2081 | 44 496 431 620 490 Parts 129 | 2 37 22 36 32 Haulers Intercepted 2 | . . 1 1 . Recyclers Shooed 3 | . . . 3 . Parts Field Recycled . | . . . . . Retrieved Matter . | . . . . . Parts Self-Destructed . | . . . . . Prevented . | . . . . . Kills | -11 -10 -9 -8 -7 ------- Run | Yrd Mat Mat Mat Fac Combat Hostiles Destroyed 48 | 1 11 11 17 8 Guns 3 | 1 . . 2 . AOE 45 | . 11 11 15 8 Classes Destroyed 15 | 1 5 5 2 2 Worker 11 | . 2 1 4 4 Builder 13 | . 2 1 5 5 Tunneler 1 | . . 1 . . Hauler 2 | . . 1 1 . Recycler 8 | . 2 3 1 2 Mechanic 1 | . 1 . . . Operator 1 | . . . . 1 Watcher 8 | . 3 . 2 3 Swarmer 3 | . . . 3 . Grunt 33 | 1 11 6 10 5 Brawler 2 | . . 1 . 1 Duelist 3 | . . 2 1 . Sentry 3 | . . 2 1 . Hunter 2 | . . . 2 . Programmer 2 | . . . . 2 Best Kill Streak 11 | 1 5 6 11 6 Combat Bots Only 6 | 1 4 2 6 2 Max Kills in Single Turn 4 | 1 2 3 4 3 Gunslinging . | . . . . . Exploded 3 | . 2 1 3 2 Melee . | . . . . . Uniques/NPCs Destroyed . | . . . . . Combat | -11 -10 -9 -8 -7 -------- Run | Yrd Mat Mat Mat Fac Hostile Shots Fired 324 | 5 21 40 84 174 Missed 103 | 1 5 10 21 66 Damage Taken 4083 | 46 347 566 1011 2113 Core 1034 | . 29 109 187 709 Absorbed by Shields . | . . . . . Redirected to Shielding 106 | . . . 64 42 Ignored by Resistances 25 | . . . . 25 Core Remaining (%) 81 | 100 88 72 66 . Volleys Fired 107 | 4 25 25 33 20 Largest 3 | 2 2 3 3 2 Hottest 90 | 80 80 90 90 66 Shots Fired 152 | 8 34 39 43 28 Gun 27 | 8 2 . 14 3 Cannon . | . . . . . Launcher 125 | . 32 39 29 25 Special . | . . . . . Kinetic 17 | . . . 14 3 Thermal . | . . . . . Explosive 125 | . 32 39 29 25 Electromagnetic 10 | 8 2 . . . Robot Hit Streak 11 | 3 2 8 11 4 Robot Miss Streak 5 | 1 5 3 2 4 Penetration Max . | . . . . . Secondary Targets . | . . . . . Shots Hit Robots 73 | 6 9 21 27 10 Core Hits 166 | 2 34 33 55 42 Critical Kills . | . . . . . Critical Parts Destroyed . | . . . . . Critical Strikes 1 | 1 . . . . Corrupt 1 | 1 . . . . Melee Attacks . | . . . . . Impact . | . . . . . Slashing . | . . . . . Piercing . | . . . . . Sneak Attacks . | . . . . . Combat Hostiles . | . . . . . Follow-up Attacks . | . . . . . Damage Inflicted 7290 | 124 1474 1500 2581 1611 Guns 362 | 94 . . 220 48 Cannons . | . . . . . Explosions 6928 | 30 1474 1500 2361 1563 Melee . | . . . . . Ramming . | . . . . . Kinetic 268 | . . . 220 48 Thermal 30 | 30 . . . . Explosive 6898 | . 1474 1500 2361 1563 Electromagnetic 94 | 94 . . . . Impact . | . . . . . Slashing . | . . . . . Piercing . | . . . . . Highest Corruption 10 | . . 1 . 10 Average Corruption 2 | . . 1 . 5 Corruption Purged . | . . . . . Corruption Blocked . | . . . . . Effects 23 | . . 7 . 16 Message Errors 3 | . . 2 . 1 Matter Fused 6 | . . 1 . 5 Heat Flow Errors 2 | . . 1 . 1 Energy Discharges 2 | . . . . 2 Parts Rejected 1 | . . . . 1 Data Loss (minor) 6 | . . 2 . 4 Data Loss (major) 1 | . . . . 1 Misfires 1 | . . . . 1 Alerts 1 | . . 1 . . Overload Shots . | . . . . . Overflow Damage 242 | . 38 63 16 125 Projectiles . | . . . . . Explosions 242 | . 38 63 16 125 Melee . | . . . . . Knockbacks . | . . . . . Impact . | . . . . . Kinetic . | . . . . . Secondary . | . . . . . Self-Inflicted Damage 1140 | . 159 193 113 675 Shots 30 | . 4 7 4 15 Rammed . | . . . . . Targets Rammed . | . . . . . Kicked . | . . . . . Crushed . | . . . . . Highest Temperature 283 | 72 136 283 51 272 Average Temperature 52 | 39 33 68 18 101 Received Heat Transfer 1062 | 24 102 177 351 408 Effects 1 | . . . . 1 Energy Bleed 1 | . . . . 1 Siege Activations . | . . . . . Robots Corrupted . | . . . . . Combat Hostiles . | . . . . . Parts Fried . | . . . . . Impact Corruptions . | . . . . . Robots Melted . | . . . . . Combat Hostiles . | . . . . . Parts Melted . | . . . . . Heat Transferred 50 | 50 . . . . Parts Sabotaged . | . . . . . Parts Stolen . | . . . . . Parts Stripped . | . . . . . Power Chain Reactions 1 | 1 . . . . Alert | -11 -10 -9 -8 -7 ------- Run | Yrd Mat Mat Mat Fac Peak Influence 489 | 20 342 352 478 489 Initial 217 | . 13 144 68 217 Average 236 | 2 144 258 257 355 Maximum Alert Level 2 | . 1 1 2 2 Low Security (%) 37 | 100 56 35 38 . Level 1 51 | . 43 64 40 59 Level 2 11 | . . . 20 40 Level 3 . | . . . . . Level 4 . | . . . . . Level 5 . | . . . . . High Security . | . . . . . Max Security . | . . . . . Squads Dispatched 9 | . 3 . 1 5 Investigation 1 | . 1 . . . Extermination 1 | . . . . 1 Reinforcement 7 | . 2 . 1 4 Assault . | . . . . . Garrison . | . . . . . Intercept . | . . . . . Searches Triggered . | . . . . . Construction Impeded 3 | . . . 1 2 Haulers Reinforced 1 | . . . . 1 Active Scanning Responses . | . . . . . Cargo Convoy Interrupts . | . . . . . Stealth | -11 -10 -9 -8 -7 --------- Run | Yrd Mat Mat Mat Fac Distress Signals 5 | . 1 1 1 2 Communications Jammed . | . . . . . Distress Signals . | . . . . . Times Spotted 79 | 1 19 14 23 22 Peak Tracking Total 6 | 1 4 2 6 6 Tactical Retreats 1 | . . . . 1 Traps | -11 -10 -9 -8 -7 ------- Run | Yrd Mat Mat Mat Fac Traps Triggered 1 | . . . . 1 Indirectly . | . . . . . Trap Hack Attempts . | . . . . . Triggered . | . . . . . Disarmed 1 | . 1 . . . Reprogrammed . | . . . . . Reused . | . . . . . Traps Extracted . | . . . . . Installed . | . . . . . Triggered . | . . . . . Machines | -11 -10 -9 -8 -7 ---------- Run | Yrd Mat Mat Mat Fac Machines Disabled 18 | . 6 3 1 8 Max in Single Turn 2 | . 2 2 1 2 Machines Repaired . | . . . . . Machines Dismantled . | . . . . . Machines Sabotaged . | . . . . . Overloaded Fab Kills . | . . . . . Hacking | -11 -10 -9 -8 -7 --------- Run | Yrd Mat Mat Mat Fac Machines Accessed 7 | . 5 2 . . Terminals 6 | . 4 2 . . Fabricators . | . . . . . Repair Stations . | . . . . . Recycling Units 1 | . 1 . . . Scanalyzers . | . . . . . Garrison Access . | . . . . . Total Hacks 21 | . 15 6 . . Successful 15 | . 11 4 . . Failed 6 | . 4 2 . . Catastrophic 1 | . . 1 . . Database Lockouts . | . . . . . Manual . | . . . . . Terminals 18 | . 12 6 . . Fabricators . | . . . . . Repair Stations . | . . . . . Recycling Units 3 | . 3 . . . Scanalyzers . | . . . . . Garrison Access . | . . . . . Terminal Hacks 12 | . 8 4 . . Record 5 | . 2 3 . . Prototype ID Bank 1 | . 1 . . . Emergency Access Points 1 | . 1 . . . Recycling Unit Index 1 | . 1 . . . Locate Traps 1 | . 1 . . . Disarm Traps 1 | . 1 . . . Maintenance Status 1 | . 1 . . . Reinforcement Status 1 | . . 1 . . Fabricator Hacks . | . . . . . Repair Station Hacks . | . . . . . Recycling Unit Hacks 3 | . 3 . . . Recycle Component 2 | . 2 . . . Process 1 | . 1 . . . Scanalyzer . | . . . . . Garrison Access Hacks . | . . . . . Unauthorized Hacks . | . . . . . Terminals . | . . . . . Fabricators . | . . . . . Repair Stations . | . . . . . Recycling Units . | . . . . . Scanalyzers . | . . . . . Garrison Access . | . . . . . Data Cores Recovered . | . . . . . Used . | . . . . . Hacking Detections 4 | . 3 1 . . Full Trace Events 2 | . 1 1 . . Feedback Events 1 | . . 1 . . Corruption 1 | . . 1 . . Feedback Blocked . | . . . . . Robot Schematics Acquired . | . . . . . Robots Built . | . . . . . Authchips . | . . . . . Time . | . . . . . Total Robot Build Rating . | . . . . . Part Schematics Acquired . | . . . . . Parts Built . | . . . . . Authchips . | . . . . . Time . | . . . . . Total Part Build Rating . | . . . . . Parts Repaired . | . . . . . Time . | . . . . . Parts Recycled 2 | . 2 . . . Recycled Matter 75 | . 75 . . . Retrieved Matter . | . . . . . Retrieved Components . | . . . . . Parts Scanalyzed . | . . . . . Part Schematics Acquired . | . . . . . Parts Damaged . | . . . . . Bothacking | -11 -10 -9 -8 -7 ------------ Run | Yrd Mat Mat Mat Fac Used RIF Installer . | . . . . . Robots Hacked . | . . . . . Non-combat . | . . . . . Combat . | . . . . . Robot Hacks Applied . | . . . . . Relay Couplers Released . | . . . . . Fabnet Peak Effective % . | . . . . . Robots Rewired . | . . . . . Allies Hacked . | . . . . . Hacks Repelled . | . . . . . Allies | -11 -10 -9 -8 -7 -------- Run | Yrd Mat Mat Mat Fac Total Allies . | . . . . . Largest Group . | . . . . . Highest-Rated Group . | . . . . . Highest-Rated Ally . | . . . . . Total Orders . | . . . . . Ally Attacks . | . . . . . Total Damage . | . . . . . Kills . | . . . . . Allies Corrupted . | . . . . . Allies Melted . | . . . . . Intel | -11 -10 -9 -8 -7 ------- Run | Yrd Mat Mat Mat Fac Robot Analysis Total . | . . . . . Derelict Logs Recovered . | . . . . . Drone Launches . | . . . . . Drone Recoveries . | . . . . . Exploration | -11 -10 -9 -8 -7 ------------- Run | Yrd Mat Mat Mat Fac Turns Passed 3877 | 100 1080 1267 764 666 Spaces Moved 1537 | 77 661 354 213 232 Core 66 | 22 . 8 . 36 Treads 580 | . . 175 213 192 Legs 887 | 55 661 171 . . Wheels . | . . . . . Hover 4 | . . . . 4 Flight . | . . . . . Fastest Speed 50 | 50 120 190 232 76 Average Speed 228 | 100 146 336 315 256 Slowest Speed 1050 | 120 190 1050 400 450 Overloaded Moves . | . . . . . Propulsion Burnouts . | . . . . . Robots Hopped . | . . . . . Cave-ins Triggered . | . . . . . Exploration Rate (%) 30 | 5 85 32 22 9 Regions Visited 4 Branch Regions . Pre-discovered Areas . | . . . . . Known Exits Taken . | . . . . . Unknown Exits Taken 4 | 1 1 1 1 . Scrap Searched . | . . . . . Spaces Dug 16 | . 10 . 6 . Terrain Destroyed 779 | . 207 185 214 173 Melee . | . . . . . Projectile . | . . . . . AOE 779 | . 207 185 214 173 Terrain Rammed . | . . . . . Walls Destroyed . | . . . . . Machines Disabled . | . . . . . Actions | -11 -10 -9 -8 -7 --------- Run | Yrd Mat Mat Mat Fac Total 1772 | 92 740 398 268 274 Wait 20 | . 20 . . . Move 1533 | 76 660 353 212 232 Hop . | . . . . . Pick Up 51 | 7 16 13 7 8 Fast Attach . | . . . . . Attach 36 | 5 7 5 8 11 Detach . | . . . . . Swap 8 | . 3 1 2 2 Drop 17 | . 9 1 6 1 Fire 107 | 4 25 25 33 20 Melee . | . . . . . Ram . | . . . . . Kick . | . . . . . Crush . | . . . . . Escape Stasis . | . . . . . Rewire . | . . . . . Trap . | . . . . . Miscellaneous . | . . . . . Route ------- -11/Scrapyard -10/Materials (discovered 4 exits: *Mat x2 / [*Min] / [*Sub]) -9/Materials -8/Materials -7/Factory (discovered 1 exit: [*Low]) History --------- Turn | Location | Event 2 | -11/Scrapyard | Met Revision 17 74 | -11/Scrapyard | Discovered new exit (range 8) 101 | -11/Scrapyard | Entered Materials 301 | -10/Materials | Discovered new exit (range 15) 312 | -10/Materials | Build established: Mutant 712 | -10/Materials | Discovered new exit (range 16) 901 | -10/Materials | Discovered new exit (range 14) 1144 | -10/Materials | Discovered new exit (range 10) 1181 | -10/Materials | Entered another Materials area 1181 | -9/Materials | Evolved 2 slots: Utility x1, Weapon x1 1482 | -9/Materials | Build established: Bomber 2340 | -9/Materials | Discovered new exit (range 16) 2448 | -9/Materials | Entered another Materials area 2448 | -8/Materials | Evolved 2 slots: Utility x2 2830 | -8/Materials | Lost 6 parts (1p1n2u2w) 2967 | -8/Materials | Discovered new exit (range 16) 3212 | -8/Materials | Entered Factory 3212 | -7/Factory | Evolved 2 slots: Propulsion x1, Utility x1 3624 | -7/Factory | Lost 3 parts (1u2w) 3795 | -7/Factory | Discovered new exit (range 15) 3835 | -7/Factory | Core integrity fell below 50% 3843 | -7/Factory | Build established: Mutant 3843 | -7/Factory | System corruption reached 10% 3864 | -7/Factory | Core integrity fell below 20% 3873 | -7/Factory | Lost 11 parts (1p4n5u1w) 3878 | -7/Factory | Destroyed by G-50 Soldier with Heavy Laser Last Messages --------------- U-05 Engineer lays Concrete. The unstable cave ceiling collapses. U-05 Engineer builds a Wall. The unstable cave ceiling collapses. Critical hit (Burn: +37). K-01 Serf collects debris. U-05 Engineer builds a Wall. K-01 Serf collects debris. U-05 Engineer builds a Wall. The unstable cave ceiling collapses. U-05 Engineer builds a Wall. System corrupted: Component data lost. Backup Plating III destroyed. U-05 Engineer lays Concrete. Mni. Grenade Launcher destroyed. [Achievement: System Compromised] Critical hit (Burn: +37). System corrupted: Matter fused (-7). System corrupted: Energy discharge (-34). [Achievement: 5k Club] Map ----- +----------------------------------------------------+ | ?????????????????????????????????????????????????? | | ?????????????????????????????????????????????????? | | ?????????????????????????????????????????????????? | | ?????????????????????????????????????????????????? | | ?????????????????????????????????????????????????? | | ?????????????????????????????????????????????????? | | ??????????????????????????????????????????????? | | ????????????????????????????????????????????? | | #???????????????????????????????????????????? | | #???????????????????????????????????????????? | | #???????????????????????????????????????????? | | ##????########??????????????????????????????? | | # ??? #??????????????????????????????? | | # ??? #??????????????????????????????? | | # ??"" #??????????????????????????????? | | # """" #??????????????????????????????? | | # """" #??????????????????????????????? | | # """" #??????????????????????????????? | | #! """" #??????????????????????????????? | | # """" #??????????????????????????????? | | # """ #??????????????????????????????? | | # T" #??????????????????????????????? | | # """ #??????????????????????????????? | | # #??????????????????????????????? | | ###/#######/#############+###???????????????? | | Y g @ ????????? | | g p ????????? | | g ????????? | | ?????????? | | k ?????????? | | ################ ###+##??????????? | | #??????????????? #???????????????? | | #???????????????? #???????????????? | | +???????????????? #???????????????? | | #????????????????? #???????????????? | | #????????????????? #???????????????? | | #?????????????????? #???????????????? | | ## T### #?????????????????? #???????????????? | | ?###??? #??????????????????? ????????????????? | | ??????? #????????????????????????????????????? | | ??????? ??????????????????????????????????????? | | ?????????????????????????????????????????????????? | | ?????????????????????????????????????????????????? | | ?????????????????????????????????????????????????? | | ?????????????????????????????????????????????????? | | ?????????????????????????????????????????????????? | | ?????????????????????????????????????????????????? | | ?????????????????????????????????????????????????? | | ?????????????????????????????????????????????????? | | ?????????????????????????????????????????????????? | +----------------------------------------------------+ Best States ------------- Heat Dissipation 34 Energy Generation 14 Energy Capacity 265 Matter Stores 391 Matter Capacity 450 Sight Range 16 Terrain Scan Density 10 Armor Coverage 450 Resistance: KI 20 Propulsion Shielding 33 Evasion (%) 55 Recoil Reduction 2 Item Schematics ----------------- None Robot Schematics ------------------ None Fabricated ------------ Nothing Alien Tech Used ----------------- None Achievements -------------- 5k Club Let's See Who's Tougher Made in Tau Ceti IV Maybe Next Time I'll Detach My Launcher Oops Remodeling System Compromised Challenges ------------ None Game ------ Seed HeartFlightSystem Manual? 0 Play Time 00:43:00 Cumulative 1.5 hours Start 2024.04.08 @ 15:08:14 End 2024.04.08 @ 19:43:48 Sessions 3 Manual Loads 0 Difficulty Rogue Special Mode None Game No. 2 Rogue 2 Adventurer 0 Explorer 0 Win Type - Total 0 Types 0/0/0/0/0/0/0/0/0 Lore% 0 Gallery% 3 Achievement% 5 Wizard Run 0 Options --------- Layout 1 ASCII 0 Keyboard 0 Movement Mouse Keybinds 0 Fullscreen 1 Font 24/Smallcaps Map View 50x35 Zoom Use 0% Tactical HUD 0 Map Filters NONE Filters NONE Steam 0 RUN: b91eb751-d37b-4cfd-8339-6801b717ada8